bitfinex-derivatives/quotes_BNBF0:USTF0_20251225
["timestamp","ask_amount","ask_price","bid_price","bid_amount"]
[1766692319878,0.20684552,841.39,840.75,0.8919973]
[1766692320082,1.18968227,841.38,840.75,0.8919973]
[1766692320278,1.18968227,841.37,840.76,0.8919973]
[1766692320583,1.18968227,841.36,840.76,0.8919973]
[1766692320880,1.18968227,841.35,840.76,0.8919973]
[1766692321080,1.18968227,841.34,840.76,0.8919973]
[1766692321279,1.18968227,841.33,840.76,0.8919973]
[1766692321482,1.18968227,841.32,840.76,0.8919973]
[1766692321678,0.20684552,841.39,840.76,0.8919973]
[1766692321886,1.1890729,841.38,840.76,0.8919973]
[1766692322085,1.1890729,841.37,840.76,0.8919973]
[1766692322285,1.1890729,841.36,840.76,0.8919973]
[1766692322485,1.1890729,841.35,840.76,0.8919973]
[1766692322782,1.1890729,841.34,840.76,0.8919973]
[1766692323081,1.1890729,841.33,840.76,0.8919973]
[1766692323286,1.1890729,841.32,840.76,0.8919973]
[1766692323486,0.20684552,841.39,840.76,0.8919973]
[1766692323686,1.18915756,841.38,840.76,0.8919973]
[1766692323886,1.18915756,841.37,840.76,0.8919973]
[1766692324182,1.18915756,841.36,840.76,0.8919973]
[1766692324382,1.18915756,841.35,840.76,0.8919973]
[1766692324582,1.18915756,841.34,840.76,0.8919973]
[1766692324787,1.18915756,841.33,840.76,0.8919973]
[1766692324984,1.18915756,841.32,840.76,0.8919973]
[1766692325183,0.20684552,841.39,840.76,0.8919973]
[1766692325488,1.18926181,841.38,840.76,0.8919973]
[1766692325684,1.18926181,841.37,840.76,0.8919973]
[1766692325890,1.18926181,841.36,840.76,0.8919973]
[1766692326091,1.18926181,841.35,840.76,0.8919973]
[1766692326284,1.18926181,841.34,840.76,0.8919973]
[1766692326590,1.18926181,841.33,840.76,0.8919973]
[1766692326789,1.18926181,841.32,840.76,0.8919973]
[1766692326990,1.18926181,841.31,840.76,0.8919973]
[1766692327291,0.20684552,841.39,840.77,0.8919973]
[1766692327488,1.18940309,841.38,840.77,0.8919973]
[1766692327689,1.18940309,841.37,840.77,0.8919973]
[1766692327893,1.18940309,841.36,840.8,0.8919973]
[1766692328188,1.18940309,841.35,840.8,0.8919973]
[1766692328387,1.18940309,841.34,840.8,0.8919973]
[1766692328593,0.20684552,841.39,840.8,0.8919973]
[1766692328794,1.18945989,841.38,840.8,0.8919973]
[1766692328987,1.18945989,841.37,840.8,0.8919973]
[1766692329192,1.18945989,841.36,840.8,0.8919973]
[1766692329490,1.18945989,841.35,840.79,0.8919973]
[1766692329688,1.18945989,841.34,840.79,0.8919973]
[1766692329889,0.20684552,841.39,840.79,0.8919973]
[1766692330093,1.18937929,841.38,840.79,0.8919973]
[1766692330293,1.18937929,841.37,840.79,0.8919973]
[1766692330494,1.18937929,841.36,840.79,0.8919973]
[1766692330689,1.18937929,841.35,840.79,0.8919973]
[1766692330892,0.20684552,841.39,840.79,0.8919973]
[1766692331090,1.18931474,841.38,840.79,0.8919973]
[1766692331295,1.18931474,841.37,840.79,0.8919973]
[1766692331495,1.18931474,841.36,840.79,0.8919973]
[1766692331696,1.18931474,841.35,840.79,0.8919973]
[1766692331896,0.20684552,841.39,840.79,0.8919973]
[1766692332093,1.18926073,841.38,840.79,0.8919973]
[1766692332296,1.18926073,841.37,840.79,0.8919973]
[1766692332596,1.18926073,841.36,840.79,0.8919973]
[1766692332896,1.18926073,841.35,840.79,0.8919973]
[1766692333091,0.20684552,841.39,840.79,0.8919973]
[1766692333293,1.18920986,841.38,840.79,0.8919973]
[1766692333493,1.18920986,841.37,840.79,0.8919973]
[1766692333696,1.18920986,841.36,840.79,0.8919973]
[1766692333996,1.18920986,841.35,840.79,0.8919973]
[1766692334192,0.89101615,841.52,840.8,0.8919973]
[1766692334394,1.18917503,841.51,840.82,0.8919973]
[1766692334597,0.2068406,841.47,840.67,1.18748552]
[1766692334797,1.18917503,841.46,840.82,0.89164164]
[1766692336497,1.18917503,841.46,840.81,0.89164164]
[1766692340598,1.18917503,841.46,840.66,1.18748552]
[1766692340797,1.18917503,841.46,840.81,0.89132625]
[1766692341001,1.18917503,841.46,840.73,9.05001161]
[1766692343405,1.18917503,841.46,840.81,0.89131204]
[1766692343602,1.18917503,841.46,840.8,0.89131204]
[1766692349810,1.18917503,841.46,840.81,0.89131204]
[1766692353113,0.2068406,841.47,840.81,0.89131204]
[1766692353314,1.18804056,841.46,840.81,0.89131204]
[1766692360418,1.18804056,841.46,840.82,0.89131204]
[1766692368321,1.18804056,841.46,840.83,0.89131204]
[1766692372326,1.18804056,841.46,840.84,0.89131204]
[1766692378434,1.18804056,841.46,840.85,0.89131204]
[1766692389442,1.18804056,841.46,840.87,0.89131204]
[1766692389642,1.18804056,841.46,840.95,0.89131204]
[1766692390146,1.18804056,841.46,840.93,0.89131204]
[1766692390344,0.2068406,841.47,840.93,0.89131204]
[1766692391145,0.2068406,841.47,840.92,0.89131204]
[1766692393140,0.2068406,841.47,840.91,0.89131204]
[1766692396246,0.2068406,841.47,840.9,0.89131204]
[1766692401350,0.2068406,841.47,840.89,0.89131204]
[1766692409350,0.2068406,841.47,840.89,0.8904836]
[1766692409948,0.2068406,841.47,840.9,0.8904836]
[1766692410153,0.2068406,841.47,840.89,0.8904836]
[1766692413555,0.2068406,841.47,840.9,0.8904836]
[1766692413756,1.18714606,841.46,840.83,0.8904836]
[1766692413957,1.18714606,841.45,840.83,0.8904836]
[1766692414157,0.2068406,841.47,840.83,0.8904836]
[1766692414357,1.18715096,841.46,840.83,0.8904836]
[1766692414562,1.18715096,841.45,840.83,0.8904836]
[1766692414858,0.2068406,841.47,840.83,0.8904836]
[1766692415056,1.18716905,841.46,840.83,0.8904836]
[1766692415256,1.18716905,841.45,840.83,0.8904836]
[1766692415457,0.2068406,841.47,840.83,0.8904836]
[1766692415661,1.18719272,841.46,840.83,0.8904836]
[1766692415960,1.18719272,841.45,840.83,0.8904836]
[1766692416155,0.2068406,841.47,840.83,0.8904836]
[1766692416360,1.18720052,841.46,840.83,0.8904836]
[1766692416560,1.18720052,841.45,840.83,0.8904836]
[1766692416762,0.2068406,841.47,840.83,0.8904836]
[1766692416963,1.18721718,841.46,840.83,0.8904836]
[1766692417160,1.18721718,841.45,840.83,0.8904836]
[1766692417369,0.2068406,841.47,840.83,0.8904836]
[1766692417562,1.18724225,841.46,840.83,0.8904836]
[1766692417761,1.18724225,841.45,840.83,0.8904836]
[1766692417961,0.2068406,841.47,840.83,0.8904836]
[1766692418161,1.18724219,841.46,840.83,0.8904836]
[1766692418361,1.18724219,841.45,840.83,0.8904836]
[1766692418564,0.2068406,841.47,840.83,0.8904836]
[1766692418765,1.18726813,841.46,840.83,0.8904836]
[1766692418961,1.18726813,841.45,840.83,0.8904836]
[1766692419163,0.2068406,841.47,840.83,0.8904836]
[1766692419363,1.18728056,841.46,840.83,0.8904836]
[1766692419561,1.18728056,841.45,840.83,0.8904836]
[1766692419762,0.2068406,841.47,840.83,0.8904836]
[1766692419962,1.18729486,841.46,840.83,0.8904836]
[1766692420166,1.18729486,841.45,840.83,0.8904836]
[1766692420365,0.2068406,841.47,840.83,0.8904836]
[1766692420564,1.18732239,841.46,840.83,0.8904836]
[1766692420767,1.18732239,841.45,840.83,0.8904836]
[1766692420963,0.2068406,841.47,840.83,0.8904836]
[1766692421163,1.18732239,841.46,840.83,0.8904836]
[1766692421364,1.18732239,841.45,840.83,0.8904836]
[1766692421565,0.2068406,841.47,840.83,0.8904836]
[1766692421764,1.18735074,841.46,840.83,0.8904836]
[1766692422068,1.18735074,841.45,840.83,0.8904836]
[1766692422265,0.2068406,841.47,840.84,0.8904836]
[1766692422462,1.18738004,841.46,840.84,0.8904836]
[1766692422768,1.18738004,841.45,840.84,0.8904836]
[1766692422968,0.2068406,841.47,840.84,9.97924783]
[1766692423168,1.18739964,841.46,840.84,9.97924783]
[1766692423368,1.18739964,841.45,840.84,9.97924783]
[1766692423569,0.2068406,841.47,840.84,9.97924783]
[1766692423766,1.18741033,841.46,840.84,9.97924783]
[1766692423969,1.18741033,841.45,840.84,9.97924783]
[1766692424266,0.2068406,841.47,840.84,9.97924783]
[1766692424469,1.18744166,841.46,840.84,9.97924783]
[1766692424770,1.18744166,841.45,840.84,9.97924783]
[1766692424969,0.2068406,841.47,840.84,9.97924783]
[1766692425170,1.18744166,841.46,840.84,9.97924783]
[1766692425367,1.18744166,841.45,840.84,9.97924783]
[1766692425570,0.2068406,841.47,840.84,9.97924783]
[1766692425770,1.18745135,841.46,840.84,9.97924783]
[1766692425971,1.18745135,841.45,840.84,9.97924783]
[1766692426169,0.2068406,841.47,840.84,9.97924783]
[1766692426373,1.18748271,841.46,840.84,9.97924783]
[1766692426668,1.18748271,841.45,840.84,0.8904836]
[1766692426873,1.18748271,841.44,840.84,0.8904836]
[1766692427070,0.2068406,841.47,840.84,0.8904836]
[1766692427274,1.18748258,841.46,840.84,0.8904836]
[1766692427474,1.18748258,841.45,840.84,0.8904836]
[1766692427777,1.18748258,841.44,840.84,0.8904836]
[1766692428071,0.2068406,841.47,840.84,0.8904836]
[1766692428270,1.18751488,841.46,840.84,0.8904836]
[1766692428468,1.18751488,841.45,840.84,0.8904836]
[1766692428671,1.18751488,841.44,840.84,0.8904836]
[1766692428874,0.2068406,841.47,840.84,0.8904836]
[1766692429075,1.18754834,841.46,840.84,0.8904836]
[1766692429277,1.18754834,841.45,840.84,0.8904836]
[1766692429477,1.18754834,841.44,840.84,0.8904836]
[1766692429776,0.2068406,841.47,840.84,0.8904836]
[1766692430076,1.18758286,841.46,840.84,0.8904836]
[1766692430376,1.18758286,841.45,840.84,0.8904836]
[1766692430573,1.18758286,841.44,840.84,0.8904836]
[1766692430772,0.2068406,841.47,840.84,0.8904836]
[1766692430975,1.1876186,841.46,840.84,0.8904836]
[1766692431174,1.1876186,841.45,840.84,0.8904836]
[1766692431374,1.1876186,841.44,840.84,0.8904836]
[1766692431573,0.2068406,841.47,840.84,0.8904836]
[1766692431774,1.18765588,841.46,840.84,0.8904836]
[1766692431974,0.2068406,841.47,840.84,0.8904836]
[1766692432174,1.18765574,841.46,840.85,0.8904836]
[1766692432477,1.18765574,841.45,840.85,0.8904836]
[1766692432674,1.18765574,841.44,840.85,0.8904836]
[1766692432877,0.2068406,841.47,840.85,0.8904836]
[1766692433078,1.18769462,841.46,840.85,0.8904836]
[1766692433277,1.18769462,841.45,840.85,0.8904836]
[1766692433480,1.18769462,841.44,840.85,0.8904836]
[1766692433681,0.2068406,841.47,840.85,0.8904836]
[1766692433878,1.18773479,841.46,840.85,0.8904836]
[1766692434177,1.18773479,841.45,840.85,0.8904836]
[1766692434378,1.18773479,841.44,840.85,0.8904836]
[1766692434681,0.2068406,841.47,840.85,0.8904836]
[1766692434878,1.18777658,841.46,840.85,0.8904836]
[1766692435082,1.18777658,841.45,840.85,0.8904836]
[1766692435280,1.18777658,841.44,840.85,0.8904836]
[1766692435479,0.2068406,841.47,840.85,0.8904836]
[1766692435679,1.18777382,841.46,840.85,0.8904836]
[1766692435879,1.18777382,841.45,840.85,0.8904836]
[1766692436182,1.18777382,841.44,840.85,0.8904836]
[1766692436381,0.2068406,841.47,840.85,0.8904836]
[1766692436694,1.18777388,841.46,840.85,0.8904836]
[1766692436882,1.18777388,841.45,840.85,0.8904836]
[1766692437080,1.18777388,841.44,840.85,0.8904836]
[1766692437281,0.2068406,841.47,840.85,0.8904836]
[1766692437486,1.18777676,841.46,840.85,0.8904836]
[1766692437680,1.18777676,841.45,840.85,0.8904836]
[1766692437883,1.18777676,841.44,840.85,0.8904836]
[1766692438084,0.2068406,841.47,840.85,0.8904836]
[1766692438287,1.18777676,841.46,840.85,0.8904836]
[1766692438484,1.18777676,841.45,840.85,0.8904836]
[1766692438786,1.18777676,841.44,840.85,0.8904836]
[1766692438983,0.2068406,841.47,840.85,0.8904836]
[1766692439181,1.18778254,841.46,840.85,0.8904836]
[1766692439386,1.18778254,841.45,840.85,0.8904836]
[1766692439584,1.18778254,841.44,840.85,0.8904836]
[1766692439889,0.2068406,841.47,840.85,0.8904836]
[1766692440090,1.18779115,841.46,840.85,0.8904836]
[1766692440290,1.18779115,841.45,840.85,0.8904836]
[1766692440590,1.18779115,841.44,840.85,0.8904836]
[1766692440790,0.2068406,841.47,840.85,0.8904836]
[1766692440990,1.18779732,841.46,840.85,0.8904836]
[1766692441190,1.18779732,841.45,840.85,0.8904836]
[1766692441486,1.18779732,841.44,840.85,0.8904836]
[1766692441690,0.2068406,841.47,840.85,0.8904836]
[1766692441890,1.18738863,841.46,840.85,0.8904836]
[1766692442090,1.18738863,841.45,840.85,0.8904836]
[1766692442287,0.2068406,841.47,840.86,0.8904836]
[1766692442492,1.18743352,841.46,840.87,0.8904836]
[1766692442688,0.2068406,841.47,840.93,0.8904836]
[1766692442991,0.2068406,841.47,840.93,9.89301148]
[1766692446496,0.2068406,841.47,840.93,0.8904836]
[1766692450099,0.8905538,841.71,840.94,0.8904836]
[1766692450299,1.18726776,841.7,840.94,0.8904836]
[1766692450497,0.20679942,841.56,840.94,0.8904836]
[1766692450695,1.18726776,841.55,840.94,0.8904836]
[1766692450901,1.18726776,841.54,840.94,0.8904836]
[1766692451196,1.18726776,841.53,840.94,0.8904836]
[1766692451401,0.20679942,841.56,840.94,0.8904836]
[1766692451599,1.18719425,841.55,840.94,0.8904836]
[1766692451799,1.18719425,841.54,840.94,0.8904836]
[1766692452001,1.18719425,841.53,840.94,0.8904836]
[1766692452198,0.20679942,841.56,840.94,0.8904836]
[1766692452398,1.18715931,841.55,840.93,0.8904836]
[1766692452702,0.20678959,841.65,840.95,0.8904836]
[1766692452898,1.18714551,841.64,840.95,0.8904836]
[1766692453198,1.18714551,841.63,840.95,0.8904836]
[1766692453401,1.18714551,841.62,840.95,0.8904836]
[1766692453596,1.18714551,841.61,840.95,0.8904836]
[1766692453798,1.18714551,841.6,840.95,0.8904836]
[1766692454000,1.18714551,841.59,840.95,0.8904836]
[1766692454202,1.18714551,841.58,840.95,0.8904836]
[1766692454400,1.18714551,841.57,840.95,0.8904836]
[1766692454600,1.18714551,841.56,840.95,0.8904836]
[1766692454903,1.18714551,841.55,840.95,0.8904836]
[1766692455105,0.20678959,841.65,840.95,0.8904836]
[1766692455301,1.18702777,841.64,840.95,0.8904836]
[1766692455505,1.18702777,841.63,840.95,0.8904836]
[1766692455801,1.18702777,841.62,840.95,0.8904836]
[1766692456101,1.18702777,841.61,840.95,0.8904836]
[1766692456400,1.18702777,841.6,840.94,0.8904836]
[1766692456604,1.18702777,841.59,840.94,0.8904836]
[1766692456802,1.18702777,841.58,840.94,0.8904836]
[1766692457104,1.18702777,841.57,840.94,0.8904836]
[1766692457304,1.18702777,841.56,840.94,0.8904836]
[1766692457504,0.20678959,841.65,840.94,0.8904836]
[1766692457699,1.18687059,841.64,840.94,0.8904836]
[1766692457901,1.18687059,841.63,840.94,0.8904836]
[1766692458102,1.18687059,841.62,840.94,0.8904836]
[1766692458402,1.18687059,841.61,840.94,0.8904836]
[1766692458603,1.18687059,841.6,840.94,0.8904836]
[1766692458801,1.18687059,841.59,840.94,0.8904836]
[1766692459001,1.18687059,841.58,840.94,0.8904836]
[1766692459304,1.18687059,841.57,840.94,0.8904836]
[1766692459506,1.18687059,841.56,840.94,0.8904836]
[1766692459704,0.20678959,841.65,840.94,0.8904836]
[1766692459904,1.1867802,841.64,840.94,0.8904836]
[1766692460100,1.1867802,841.63,840.94,0.8904836]
[1766692460306,1.1867802,841.62,840.94,0.8904836]
[1766692460506,0.20678959,841.65,840.94,0.8904836]
[1766692460507,1.1867802,841.61,840.94,0.8904836]
[1766692460704,1.1867802,841.6,840.94,0.8904836]
[1766692460905,1.1867802,841.59,840.94,0.8904836]
[1766692461108,1.1867802,841.58,840.94,0.8904836]
[1766692461308,1.1867802,841.57,840.94,0.8904836]
[1766692461507,1.1867802,841.56,840.94,0.8904836]
[1766692461706,0.20678959,841.65,840.94,0.8904836]
[1766692461907,1.18671394,841.64,840.94,0.8904836]
[1766692462104,1.18671394,841.63,840.94,0.8904836]
[1766692462306,1.18671394,841.62,840.94,0.8904836]
[1766692462608,1.18671394,841.61,840.94,0.8904836]
[1766692462808,1.18671394,841.6,840.94,0.8904836]
[1766692463009,1.18671394,841.59,840.94,0.8904836]
[1766692463210,1.18671394,841.58,840.94,0.8904836]
[1766692463407,1.18671394,841.57,840.94,0.8904836]
[1766692463605,1.18671394,841.56,840.94,0.8904836]
[1766692463906,0.20678959,841.65,840.94,0.8904836]
[1766692464104,1.18667053,841.64,840.94,0.8904836]
[1766692464315,1.18667053,841.63,840.94,0.8904836]
[1766692464605,1.18667053,841.62,840.94,0.8904836]
[1766692464806,1.18667053,841.61,840.94,0.8904836]
[1766692465006,1.18667053,841.6,840.94,0.8904836]
[1766692465205,1.18667053,841.59,840.94,0.8904836]
[1766692465506,1.18667053,841.58,840.94,0.8904836]
[1766692465706,1.18667053,841.57,840.94,0.8904836]
[1766692465906,0.20678959,841.65,840.94,0.8904836]
[1766692466210,1.18664854,841.64,840.94,0.8904836]
[1766692466407,1.18664854,841.63,840.94,0.8904836]
[1766692466710,1.18664854,841.62,840.94,0.8904836]
[1766692466914,1.18664854,841.61,840.94,0.8904836]
[1766692467111,1.18664854,841.6,840.94,0.8904836]
[1766692467407,0.20678959,841.65,840.94,0.8904836]
[1766692467408,1.18664854,841.59,840.94,0.8904836]
[1766692467712,1.18664854,841.58,840.94,0.8904836]
[1766692467908,1.18664854,841.57,840.94,0.8904836]
[1766692468107,0.20678959,841.65,840.94,0.8904836]
[1766692468308,1.18664749,841.64,840.94,0.8904836]
[1766692468512,1.18664749,841.63,840.94,0.8904836]
[1766692468710,1.18664749,841.62,840.94,0.8904836]
[1766692468910,0.20678959,841.65,840.94,0.8904836]
[1766692469213,1.1866545,841.64,840.94,0.8904836]
[1766692469408,1.1866545,841.63,840.94,0.8904836]
[1766692469608,1.1866545,841.62,840.94,0.8904836]
[1766692469811,1.1866545,841.61,840.94,0.8904836]
[1766692470010,1.1866545,841.6,840.94,0.8904836]
[1766692470207,1.1866545,841.59,840.94,0.8904836]
[1766692470412,0.20678959,841.65,840.94,0.8904836]
[1766692470413,1.1866545,841.58,840.94,0.8904836]
[1766692470609,1.1866545,841.57,840.94,0.8904836]
[1766692470815,1.1866545,841.56,840.94,0.8904836]
[1766692471015,0.20678959,841.65,840.94,0.8904836]
[1766692471214,1.18668452,841.64,840.94,0.8904836]
[1766692471412,1.18668452,841.63,840.94,0.8904836]
[1766692471613,1.18668452,841.62,840.94,0.8904836]
[1766692471911,1.18668452,841.61,840.94,0.8904836]
[1766692472112,1.18668452,841.6,840.94,0.8904836]
[1766692472316,1.18668452,841.59,840.94,0.8904836]
[1766692472615,1.18668452,841.58,840.94,0.8904836]
[1766692472814,1.18668452,841.57,840.94,0.8904836]
[1766692473012,1.18668452,841.56,840.94,0.8904836]
[1766692473216,0.20678959,841.65,840.94,0.8904836]
[1766692473415,1.1859946,841.64,840.94,0.8904836]
[1766692473613,1.1859946,841.63,840.94,0.8904836]
[1766692473913,1.1859946,841.62,840.94,0.8904836]
[1766692474117,1.1859946,841.61,840.94,0.8904836]
[1766692474315,1.1859946,841.6,840.94,0.8904836]
[1766692474517,1.1859946,841.59,840.94,0.8904836]
[1766692474813,1.1859946,841.58,840.95,0.8904836]
[1766692475013,0.20678959,841.65,840.95,0.8904836]
[1766692475217,1.18602191,841.64,840.96,0.8904836]
[1766692475414,1.18602191,841.63,840.96,0.8904836]
[1766692475718,1.18602191,841.62,840.97,0.8904836]
[1766692475915,1.18602191,841.61,840.97,0.8904836]
[1766692476116,1.18602191,841.6,840.97,0.8904836]
[1766692476319,1.18602191,841.59,840.97,0.8904836]
[1766692476515,0.20678959,841.65,840.97,9.84161045]
[1766692476720,1.1860698,841.64,840.97,9.84161045]
[1766692476921,1.1860698,841.63,840.97,9.84161045]
[1766692477118,1.1860698,841.62,840.97,9.84161045]
[1766692477322,1.1860698,841.61,840.97,9.84161045]
[1766692477517,1.1860698,841.6,840.97,9.84161045]
[1766692477721,1.1860698,841.59,840.97,9.84161045]
[1766692478017,0.20678959,841.65,840.97,9.84161045]
[1766692478217,1.18610604,841.64,840.97,9.84161045]
[1766692478421,1.18610604,841.63,840.97,9.84161045]
[1766692478621,1.18610604,841.62,840.97,9.84161045]
[1766692478918,1.18610604,841.61,840.98,0.8904836]
[1766692479218,1.18610604,841.6,840.98,0.8904836]
[1766692479421,1.18610604,841.59,840.98,0.8904836]
[1766692479621,0.20678959,841.65,840.98,0.8904836]
[1766692479821,1.18619562,841.64,840.98,0.8904836]
[1766692480016,1.18619562,841.63,840.98,0.8904836]
[1766692480321,1.18619562,841.62,840.98,0.8904836]
[1766692480519,1.18619562,841.61,840.98,0.8904836]
[1766692480719,1.18619562,841.6,840.98,0.8904836]
[1766692481018,1.18619562,841.59,840.98,0.8904836]
[1766692481217,0.20678959,841.65,840.99,0.8904836]
[1766692481516,1.18633481,841.64,840.99,0.8904836]
[1766692481719,1.18633481,841.63,840.99,0.8904836]
[1766692481918,1.18633481,841.62,840.99,0.8904836]
[1766692482123,1.18633481,841.61,840.99,0.8904836]
[1766692482322,1.18633481,841.6,840.99,0.8904836]
[1766692482520,1.18633481,841.59,840.99,0.8904836]
[1766692482719,0.20678959,841.65,840.99,0.8904836]
[1766692482923,1.18642815,841.64,840.99,0.8904836]
[1766692483119,1.18642815,841.63,840.99,0.8904836]
[1766692483420,1.18642815,841.62,840.99,0.8904836]
[1766692483619,0.20678959,841.65,840.99,0.8904836]
[1766692483620,1.18642815,841.61,840.99,0.8904836]
[1766692483925,1.18642815,841.6,840.99,0.8904836]
[1766692484121,1.18642815,841.59,841.0,0.8904836]
[1766692484419,1.18642815,841.58,841.0,0.8904836]
[1766692484621,0.20678959,841.65,841.0,0.8904836]
[1766692484824,1.1866799,841.64,841.0,9.9210866]
[1766692485024,1.1866799,841.63,841.0,9.9210866]
[1766692485321,1.1866799,841.62,841.0,9.9210866]
[1766692485524,1.1866799,841.61,841.0,9.9210866]
[1766692485822,1.1866799,841.6,841.0,9.9210866]
[1766692486024,1.1866799,841.59,841.0,9.9210866]
[1766692486222,1.1866799,841.58,841.0,9.9210866]
[1766692486422,1.1866799,841.57,841.0,9.9210866]
[1766692486623,0.20678959,841.65,841.0,9.9210866]
[1766692486925,1.1868427,841.64,841.0,9.9210866]
[1766692487122,1.1868427,841.63,841.0,9.9210866]
[1766692487321,1.1868427,841.62,841.01,0.8904836]
[1766692487626,1.1868427,841.61,841.01,0.8904836]
[1766692487922,1.1868427,841.6,841.01,0.8904836]
[1766692488126,1.1868427,841.59,841.01,0.8904836]
[1766692488422,1.1868427,841.58,841.01,0.8904836]
[1766692488622,1.1868427,841.57,841.01,0.8904836]
[1766692488921,0.20678959,841.65,841.01,0.8904836]
[1766692489124,1.18706761,841.64,841.01,0.8904836]
[1766692489327,1.18706761,841.63,841.01,0.8904836]
[1766692489524,1.18706761,841.62,841.01,0.8904836]
[1766692489826,1.18706761,841.61,841.01,0.8904836]
[1766692490025,1.18706761,841.6,841.01,0.8904836]
[1766692490325,1.18706761,841.59,841.01,0.8904836]
[1766692490526,1.18706761,841.58,841.01,0.8904836]
[1766692490727,1.18706761,841.57,841.01,0.8904836]
[1766692490929,0.20678959,841.65,841.01,0.8904836]
[1766692491229,1.18707966,841.64,841.01,0.8904836]
[1766692491430,1.18707966,841.63,841.01,0.8904836]
[1766692491632,1.18707966,841.62,841.01,0.8904836]
[1766692491933,1.18707966,841.61,841.01,0.8904836]
[1766692492129,1.18707966,841.6,841.01,0.8904836]
[1766692492432,1.18707966,841.59,841.01,0.8904836]
[1766692492631,1.18707966,841.58,841.01,0.8904836]
[1766692492830,1.18707966,841.57,841.01,0.8904836]
[1766692493132,0.20678959,841.65,841.01,0.8904836]
[1766692493429,1.18710871,841.64,841.01,0.8904836]
[1766692493731,0.20678959,841.65,841.01,0.8904836]
[1766692493732,1.18710871,841.63,841.01,0.8904836]
[1766692493932,1.18710871,841.62,841.01,0.8904836]
[1766692494128,1.18710871,841.61,841.01,0.8904836]
[1766692494428,1.18710871,841.6,841.01,0.8904836]
[1766692494632,1.18710871,841.59,841.01,0.8904836]
[1766692494830,1.18710871,841.58,841.01,0.8904836]
[1766692495031,1.18710871,841.57,841.01,0.8904836]
[1766692495231,1.18710871,841.56,841.01,0.8904836]
[1766692495434,0.20678959,841.65,841.01,0.8904836]
[1766692495634,1.18716742,841.64,841.01,0.8904836]
[1766692495832,1.18716742,841.63,841.01,0.8904836]
[1766692496031,1.18716742,841.62,841.01,0.8904836]
[1766692496332,1.18716742,841.61,841.01,0.8904836]
[1766692496534,1.18716742,841.6,841.01,0.8904836]
[1766692496734,1.18716742,841.59,841.01,0.8904836]
[1766692496939,1.18716742,841.58,841.01,0.8904836]
[1766692497137,1.18716742,841.57,841.01,0.8904836]
[1766692497336,1.18716742,841.56,841.01,0.8904836]
[1766692497539,0.20678959,841.65,841.01,0.89120236]
[1766692497837,1.1871988,841.64,841.01,0.89120236]
[1766692498039,1.1871988,841.63,841.01,0.89120236]
[1766692498237,1.1871988,841.62,841.01,0.89120236]
[1766692498438,1.1871988,841.61,841.01,0.89120236]
[1766692498642,1.1871988,841.6,841.01,0.89120236]
[1766692498939,1.1871988,841.59,841.01,0.89120236]
[1766692499136,1.1871988,841.58,841.01,0.89120236]
[1766692499337,1.1871988,841.57,841.01,0.89120236]
[1766692499541,1.1871988,841.56,841.01,0.89120236]
[1766692499839,0.20678959,841.65,841.01,0.89120236]
[1766692500042,1.18720018,841.64,841.01,0.89120236]
[1766692500237,1.18720018,841.63,841.01,0.89120236]
[1766692500437,1.18720018,841.62,841.01,0.89120236]
[1766692500638,1.18720018,841.61,841.01,0.89120236]
[1766692500839,1.18720018,841.6,841.01,0.89120236]
[1766692501038,1.18720018,841.59,841.01,0.89120236]
[1766692501240,1.18720018,841.58,841.01,0.89120236]
[1766692501442,1.18720018,841.57,841.01,0.89120236]
[1766692501739,1.18720018,841.56,841.01,0.89120236]
[1766692501938,1.18720018,841.55,841.0,0.89120236]
[1766692502239,0.20678959,841.65,841.0,0.89120236]
[1766692502440,1.18726551,841.64,841.0,0.89120236]
[1766692502641,1.18726551,841.63,841.0,0.89120236]
[1766692502841,1.18726551,841.62,841.0,0.89120236]
[1766692503038,1.18726551,841.61,841.0,0.89120236]
[1766692503242,1.18726551,841.6,841.0,0.89120236]
[1766692503440,1.18726551,841.59,841.0,0.89120236]
[1766692503739,1.18726551,841.58,841.0,0.89120236]
[1766692503943,1.18726551,841.57,841.0,0.89120236]
[1766692504144,1.18726551,841.56,841.0,0.89120236]
[1766692504440,1.18726551,841.55,841.0,0.89120236]
[1766692504739,0.20678959,841.65,841.0,0.89120236]
[1766692504944,1.18729233,841.64,841.0,0.89120236]
[1766692505240,1.18729233,841.63,841.0,0.89120236]
[1766692505443,1.18729233,841.62,840.99,0.89120236]
[1766692505640,1.18729233,841.61,840.99,0.89120236]
[1766692505839,1.18729233,841.6,840.99,0.89120236]
[1766692506044,1.18729233,841.59,840.99,0.89120236]
[1766692506244,1.18729233,841.58,840.99,0.89120236]
[1766692506443,1.18729233,841.57,840.99,0.89120236]
[1766692506638,1.18729233,841.56,840.99,0.89120236]
[1766692506841,1.18729233,841.55,840.99,0.89120236]
[1766692507043,1.18729233,841.54,840.99,0.89120236]
[1766692507245,1.18729233,841.53,840.99,0.89120236]
[1766692507447,0.20678959,841.65,840.99,0.89120236]
[1766692507646,1.18733794,841.64,840.99,0.89120236]
[1766692507941,1.18733794,841.63,840.99,0.89120236]
[1766692508146,1.18733794,841.62,840.99,0.89120236]
[1766692508346,1.18733794,841.61,840.99,0.89120236]
[1766692508646,1.18733794,841.6,840.99,0.89120236]
[1766692508845,1.18733794,841.59,840.99,0.89120236]